bitfinex/quotes_SOLUSD_20250717
["timestamp","ask_amount","ask_price","bid_price","bid_amount"]
[1752782178083,43.04009262,173.51,173.46,9.26009262]
[1752782178400,30.0,173.47,173.43,20.18105286]
[1752782178587,30.0,173.47,173.43,5.7660151]
[1752782178792,30.0,173.47,173.44,0.68]
[1752782178992,30.0,173.47,173.45,9.94009262]
[1752782179177,30.0,173.47,173.43,15.02610772]
[1752782179378,30.0,173.47,173.44,0.68]
[1752782179897,30.0,173.47,173.44,6.44562546]
[1752782180096,0.7,173.46,173.42,9.26009262]
[1752782180483,0.7,173.46,173.43,9.94009262]
[1752782180801,0.7,173.46,173.44,9.94009262]
[1752782180999,0.7,173.46,173.45,0.68]
[1752782181602,0.7,173.46,173.45,9.94009262]
[1752782181784,0.7,173.46,173.45,11.53519262]
[1752782181992,33.68,173.53,173.45,22.45382585]
[1752782182319,42.92009262,173.54,173.49,9.26009262]
[1752782182619,30.0,173.5,173.45,21.77382585]
[1752782182779,9.26009262,173.52,173.47,9.26009262]
[1752782182980,9.26009262,173.5,173.44,5.76558904]
[1752782183181,9.26009262,173.49,173.44,15.02568166]
[1752782183380,9.26009262,173.49,173.45,0.68]
[1752782183804,33.64,173.51,173.47,5.76468553]
[1752782184017,9.26009262,173.5,173.43,6.6145]
[1752782184202,9.26009262,173.48,173.44,5.76568265]
[1752782184385,9.26009262,173.48,173.44,0.68]
[1752782184586,9.26009262,173.47,173.43,5.76588341]
[1752782184808,9.26009262,173.45,173.4,16.62212895]
[1752782185104,9.26009262,173.45,173.4,8.04200829]
[1752782185105,43.40009262,173.45,173.4,8.04200829]
[1752782185281,9.26009262,173.44,173.4,0.68]
[1752782185484,33.6,173.45,173.39,9.26009262]
[1752782185701,33.6,173.45,173.41,0.68]
[1752782185884,9.26009262,173.45,173.42,0.68]
[1752782186088,26.0,173.49,173.37,14.41980814]
[1752782186089,0.54,173.44,173.37,0.68]
[1752782186303,33.6,173.43,173.37,0.68]
[1752782186524,33.6,173.43,173.37,15.70810323]
[1752782186700,42.86009262,173.43,173.37,15.70810323]
[1752782186893,42.86009262,173.43,173.37,9.94009262]
[1752782187106,42.86009262,173.43,173.36,5.76827427]
[1752782187107,9.26009262,173.4,173.35,13.69793113]
[1752782187313,9.26009262,173.39,173.35,0.68]
[1752782187486,9.26009262,173.37,173.32,5.76961291]
[1752782187683,43.42009262,173.37,173.32,5.76961291]
[1752782187902,43.42009262,173.37,173.32,6.44961291]
[1752782188106,9.26009262,173.36,173.32,0.68]
[1752782188312,9.26009262,173.37,173.33,0.68]
[1752782188615,33.66,173.39,173.35,9.26009262]
[1752782188830,6.1924,173.44,173.37,9.26009262]
[1752782189016,9.26009262,173.43,173.38,9.94009262]
[1752782189189,33.68,173.43,173.39,0.68]
[1752782189385,42.94009262,173.43,173.39,0.68]
[1752782189605,9.26009262,173.42,173.36,9.26009262]
[1752782189809,9.80009262,173.42,173.36,9.26009262]
[1752782190005,33.68,173.43,173.38,9.26009262]
[1752782190189,26.0,173.45,173.39,9.94009262]
[1752782190190,35.26009262,173.45,173.39,9.94009262]
[1752782190385,0.68,173.47,173.4,9.26009262]
[1752782190590,9.26009262,173.48,173.41,0.68]
[1752782190897,33.64,173.48,173.44,9.26009262]
[1752782191098,33.64,173.48,173.44,0.68]
[1752782191304,42.90009262,173.48,173.42,9.94009262]
[1752782191615,33.64,173.48,173.44,9.26009262]
[1752782191997,9.26009262,173.49,173.45,0.68]
[1752782192192,30.0,173.46,173.45,6.44523012]
[1752782192396,30.0,173.46,173.45,0.68]
[1752782192802,30.0,173.46,173.44,5.76561983]
[1752782193112,9.26009262,173.49,173.44,15.71571245]
[1752782193815,0.71,173.48,173.41,6.45668012]
[1752782193993,9.26009262,173.49,173.43,9.26009262]
[1752782194503,39.38384956,173.5,173.42,0.69]
[1752782194711,9.26009262,173.48,173.42,0.69]
[1752782194924,0.71,173.49,173.42,9.95009262]
[1752782195105,9.26009262,173.48,173.43,9.26009262]
[1752782195299,9.26009262,173.48,173.43,9.95009262]
[1752782195716,0.7,173.47,173.44,9.95009262]
[1752782195912,0.7,173.47,173.45,6.45535024]
[1752782196096,0.7,173.47,173.45,15.71544286]
[1752782196297,0.7,173.47,173.46,9.95009262]
[1752782196911,0.7,173.47,173.43,0.69]
[1752782197115,9.26009262,173.46,173.45,0.06]
[1752782197914,1.41,173.47,173.45,0.06]
[1752782198123,0.7,173.47,173.45,0.06]
[1752782198422,9.96009262,173.47,173.45,0.06]
[1752782198939,9.97009262,173.46,173.45,0.06]
[1752782199100,158.27009262,173.46,173.45,0.06]
[1752782199598,9.97009262,173.46,173.45,0.06]
[1752782200141,15.73511049,173.46,173.45,0.06]
[1752782200608,32.51979446,173.46,173.45,0.06]
[1752782200815,32.51979446,173.46,173.24,1.5104]
[1752782200816,9.26009262,173.36,173.24,1.5104]
[1752782201003,9.26009262,173.34,173.27,6.46133952]
[1752782201205,9.26009262,173.34,173.28,9.26009262]
[1752782201511,9.26009262,173.34,173.29,9.26009262]
[1752782201704,9.26009262,173.35,173.3,0.69]
[1752782202095,33.44,173.36,173.3,5.77023806]
[1752782202303,33.44,173.36,173.32,9.26009262]
[1752782202514,33.46,173.39,173.33,0.69]
[1752782202720,9.26009262,173.37,173.33,0.69]
[1752782202927,9.26009262,173.35,173.3,6.46023806]
[1752782203309,9.26009262,173.36,173.31,0.69]
[1752782203601,9.26009262,173.36,173.32,0.69]
[1752782204105,9.26009262,173.35,173.3,9.26009262]
[1752782204299,9.26009262,173.32,173.28,0.69]
[1752782204524,9.26009262,173.32,173.26,0.69]
[1752782204712,9.26009262,173.33,173.27,9.26009262]
[1752782204912,0.71,173.34,173.27,0.69]
[1752782205112,9.26009262,173.33,173.28,9.26009262]
[1752782205323,9.26009262,173.33,173.28,0.69]
[1752782205522,9.26009262,173.32,173.28,0.69]
[1752782205721,0.71,173.34,173.28,9.95009262]
[1752782205927,9.26009262,173.33,173.28,9.95009262]
[1752782206309,39.20869537,173.35,173.29,0.69]
[1752782206736,9.26009262,173.34,173.29,9.95009262]
[1752782206942,0.71,173.34,173.29,9.95009262]
[1752782207235,0.71,173.33,173.25,0.69]
[1752782207435,9.26009262,173.31,173.25,0.69]
[1752782207612,42.78009262,173.31,173.25,9.95009262]
[1752782207809,33.52,173.31,173.25,0.69]
[1752782208011,33.52,173.31,173.27,9.26009262]
[1752782208246,33.52,173.31,173.27,0.69]
[1752782208425,42.78009262,173.31,173.27,0.69]
[1752782209232,33.52,173.31,173.27,0.69]
[1752782209443,42.78009262,173.31,173.26,15.03162206]
[1752782209625,33.52,173.31,173.26,6.46152944]
[1752782209813,33.52,173.31,173.27,9.26009262]
[1752782210011,33.52,173.31,173.28,0.69]
[1752782210217,33.52,173.31,173.28,9.95009262]
[1752782210419,33.52,173.31,173.27,5.77125121]
[1752782210420,33.52,173.31,173.27,15.03134383]
[1752782210939,33.52,173.31,173.27,15.72134383]
[1752782211112,0.71,173.37,173.3,9.26009262]
[1752782211314,149.01,173.4,173.32,9.26009262]
[1752782211528,157.56009262,173.39,173.34,9.26009262]
[1752782211713,30.0,173.35,173.34,9.26009262]
[1752782211915,157.56009262,173.39,173.34,9.95009262]
[1752782212230,36.97621506,173.34,173.25,0.69]
[1752782212421,9.26009262,173.28,173.23,15.72276478]
[1752782212739,9.26009262,173.28,173.23,6.46267216]
[1752782212923,9.26009262,173.29,173.24,0.69]
[1752782213235,9.26009262,173.28,173.23,9.26009262]
[1752782213538,9.26009262,173.28,173.23,9.95009262]
[1752782213744,9.97009262,173.27,173.22,11.40418703]
[1752782214239,9.97009262,173.27,173.22,27.1271995]
[1752782214573,9.26009262,173.27,173.22,27.1271995]
[1752782215241,6.48044552,173.3,173.22,17.17710688]
[1752782215438,33.42,173.28,173.23,9.95009262]
[1752782215751,33.38,173.31,173.27,9.26009262]
[1752782215933,9.26009262,173.32,173.27,9.95009262]
[1752782216237,9.26009262,173.32,173.22,31.60962044]
[1752782216238,9.26009262,173.31,173.25,9.95009262]
[1752782216407,9.97009262,173.31,173.25,15.72187783]
[1752782216611,0.71,173.3,173.22,11.40418703]
[1752782216820,9.26009262,173.27,173.22,11.40418703]
[1752782217031,33.38,173.28,173.22,20.66427965]
[1752782217237,42.64009262,173.28,173.23,9.95009262]
[1752782217439,42.64009262,173.28,173.24,0.69]
[1752782217752,33.38,173.28,173.24,9.95009262]
[1752782218040,33.36,173.31,173.26,9.26009262]
[1752782218243,33.36,173.31,173.25,0.69]
[1752782218244,33.36,173.31,173.27,0.69]
[1752782218439,33.36,173.31,173.28,5.77100646]
[1752782218747,33.36,173.31,173.28,6.46100646]
[1752782219941,33.36,173.31,173.28,5.77100646]
[1752782220126,33.36,173.31,173.26,15.03176525]
[1752782220325,26.0,173.36,173.28,5.77100646]
[1752782220527,157.56009262,173.35,173.3,9.26009262]
[1752782220740,148.3,173.35,173.31,9.95009262]
[1752782220937,157.56009262,173.35,173.3,9.26009262]
[1752782221121,148.3,173.35,173.31,0.69]
[1752782221318,9.26009262,173.34,173.28,6.46100646]
[1752782221549,9.26009262,173.32,173.28,5.77100646]
[1752782221725,9.26009262,173.33,173.28,15.03109908]
[1752782221925,9.26009262,173.33,173.28,15.72109908]
[1752782222332,9.26009262,173.33,173.22,11.98148757]
[1752782222333,9.26009262,173.29,173.22,12.09418703]
[1752782222535,9.26009262,173.27,173.23,5.77264471]
[1752782222732,9.26009262,173.28,173.23,15.03273733]
[1752782222934,9.26009262,173.29,173.24,9.98009262]
[1752782223132,9.26009262,173.28,173.22,26.43721209]
[1752782223427,9.26009262,173.3,173.24,9.26009262]
[1752782223629,9.26009262,173.3,173.25,9.98009262]
[1752782223857,157.56009262,173.32,173.27,9.26009262]
[1752782224154,33.28,173.33,173.28,9.98009262]
[1752782224334,33.28,173.33,173.3,5.77034045]
[1752782224529,30.0,173.31,173.3,0.72]
[1752782224933,30.0,173.31,173.27,11.53859262]
[1752782225140,42.54009262,173.33,173.28,9.98009262]
[1752782225330,0.68,173.32,173.27,5.77133902]
[1752782225525,9.26009262,173.28,173.22,11.40418703]
[1752782225726,9.26009262,173.25,173.22,11.40418703]
[1752782225944,0.68,173.25,173.22,11.40418703]
[1752782226156,9.26009262,173.24,173.22,11.40418703]
[1752782226326,9.94009262,173.24,173.22,11.40418703]
[1752782226524,6.45267216,173.23,173.22,11.40418703]
[1752782227263,0.68,173.23,173.22,11.40418703]
[1752782227632,9.94009262,173.23,173.22,11.40418703]
[1752782227832,43.18009262,173.23,173.22,11.40418703]
[1752782228448,48.95276478,173.23,173.22,11.40418703]
[1752782229050,78.95276478,173.23,173.22,11.40418703]
[1752782229656,30.68,173.23,173.22,11.40418703]
[1752782229854,63.22,173.23,173.22,11.40418703]
[1752782230229,72.48009262,173.23,173.22,11.40418703]
[1752782230433,48.93276478,173.23,173.22,11.40418703]
[1752782230633,39.67267216,173.23,173.22,11.40418703]
[1752782230838,65.71744875,173.23,173.22,11.40418703]
[1752782231130,65.71744875,173.23,173.21,0.06]
[1752782231131,16.78468397,173.22,173.21,0.06]
[1752782231338,26.72477659,173.22,173.21,0.06]
[1752782231944,56.72477659,173.22,173.21,0.06]
[1752782232362,9.26009262,173.14,173.08,9.98009262]
[1752782232529,16.78468397,173.18,173.05,16.034049]
[1752782232530,33.18,173.15,173.09,15.03743388]
[1752782232853,33.16,173.15,173.1,9.98009262]
[1752782233160,42.42009262,173.15,173.1,0.72]
[1752782233335,9.26009262,173.13,173.1,0.72]
[1752782233537,9.26009262,173.14,173.1,0.72]
[1752782233750,9.26009262,173.14,173.11,0.72]
[1752782233951,9.26009262,173.12,173.03,0.72]
[1752782234149,0.68,173.13,173.03,0.72]
[1752782234150,9.26009262,173.07,173.03,0.72]
[1752782234355,9.26009262,173.07,173.01,1.6399]
[1752782234356,9.26009262,173.04,173.01,1.6399]
[1752782234656,9.26009262,173.03,173.0,0.04733]
[1752782234856,9.26009262,173.01,173.0,0.04733]
[1752782235749,33.12,173.02,173.0,0.04733]
[1752782235947,42.36009262,173.03,173.0,0.76733]
[1752782236127,33.1,173.03,173.0,10.02742262]
[1752782236334,33.08,173.06,173.01,0.72]
[1752782236633,33.08,173.06,173.0,0.04733]
[1752782236634,42.34009262,173.06,173.02,0.72]
[1752782236834,33.08,173.06,173.0,0.04733]
[1752782237030,0.68,173.05,173.0,0.04733]
[1752782237231,9.26009262,173.01,173.0,0.04733]
[1752782237450,26.0,173.08,173.0,0.04733]
[1752782237451,33.08,173.03,173.0,0.04733]
[1752782237656,33.06,173.04,173.0,0.04733]
[1752782237833,9.26009262,173.03,173.0,0.04733]
[1752782238648,23.69941261,173.14,173.01,9.98009262]
[1752782238852,9.26009262,173.08,173.03,9.26009262]
[1752782239053,42.30009262,173.09,173.04,0.72]
[1752782239250,42.30009262,173.09,173.0,0.04733]
[1752782239251,0.68,173.11,173.05,9.98009262]
[1752782239455,42.28009262,173.14,173.06,0.72]
[1752782239957,33.02,173.14,173.07,5.77800889]
[1752782240159,30.0,173.08,173.07,5.77800889]
[1752782240347,30.0,173.08,173.07,29.48312375]
[1752782240751,9.26009262,173.16,173.07,30.20312375]
[1752782240949,9.26009262,173.14,173.05,7.29725687]
[1752782241143,9.26009262,173.1,173.05,15.03854949]
[1752782241350,9.26009262,173.1,173.05,15.75854949]
[1752782241547,9.26009262,173.12,173.07,9.26009262]
[1752782241835,0.68,173.17,173.11,9.26009262]
[1752782242035,33.0,173.18,173.12,9.26009262]
[1752782242250,9.26009262,173.17,173.12,9.26009262]
[1752782242650,9.26009262,173.17,173.12,9.98009262]
[1752782242961,9.26009262,173.17,173.12,0.72]
[1752782243552,9.26009262,173.17,173.12,9.98009262]
[1752782243866,33.0,173.18,173.14,5.77567286]
[1752782244157,9.26009262,173.15,173.1,0.72]
[1752782244360,9.26009262,173.15,173.1,9.98009262]
[1752782244598,9.26009262,173.16,173.1,9.98009262]
[1752782244773,9.94009262,173.17,173.11,9.98009262]
[1752782245145,9.26009262,173.16,173.11,9.98009262]
[1752782245773,0.68,173.17,173.12,9.26009262]
[1752782246078,0.7,173.15,173.14,5.77567286]
[1752782246283,0.7,173.15,173.11,5.77667379]
[1752782246467,0.7,173.15,173.0,0.10733]
[1752782246468,26.0,173.11,173.0,0.10733]
[1752782246645,26.0,173.11,173.02,9.26009262]
[1752782246646,9.26009262,173.07,173.02,9.26009262]
[1752782246958,9.26009262,173.11,173.05,9.26009262]
[1752782247168,32.88,173.1,173.05,9.98009262]
[1752782247746,33.56,173.13,173.07,9.26009262]
[1752782247946,9.26009262,173.12,173.08,5.77767506]
[1752782248149,32.88,173.13,173.09,9.26009262]
[1752782248383,9.26009262,173.14,173.09,9.98009262]
[1752782249292,0.7,173.15,173.12,9.26009262]
[1752782249477,0.7,173.15,173.13,0.72]
[1752782249779,0.7,173.15,173.14,9.98009262]
[1752782249980,0.7,173.15,173.14,15.75576548]
[1752782250874,9.26009262,173.2,173.14,15.75576548]
[1752782251066,9.26009262,173.2,173.15,9.26009262]
[1752782251263,9.26009262,173.2,173.15,9.98009262]
[1752782251662,32.87,173.21,173.15,9.98009262]
[1752782251866,42.13009262,173.21,173.15,9.98009262]
[1752782252099,42.13009262,173.21,173.16,5.77500577]
[1752782252270,32.87,173.21,173.16,15.75509839]
[1752782252579,9.29009262,173.21,173.17,0.72]
[1752782252795,0.03,173.21,173.17,0.72]
[1752782253091,0.03,173.21,173.18,9.26009262]
[1752782253381,0.03,173.21,173.19,9.26009262]
[1752782253774,0.03,173.28,173.2,10.51745982]
[1752782253965,0.03,173.28,173.26,9.26009262]
[1752782254167,0.03,173.28,173.27,5.77133952]
[1752782254769,0.03,173.28,173.27,15.03143214]
[1752782255060,0.03,173.28,173.27,15.71143214]
[1752782256872,0.73,173.28,173.27,15.71143214]
[1752782257074,0.73,173.28,173.27,0.68]
[1752782257273,0.73,173.28,173.2,26.0]
[1752782257274,0.73,173.28,173.26,9.26009262]
[1752782257862,0.73,173.28,173.27,9.26009262]
[1752782258493,0.73,173.28,173.27,15.03143214]
[1752782259061,0.73,173.28,173.27,15.71143214]
[1752782260563,0.73,173.28,173.27,15.03143214]
[1752782260884,0.73,173.28,173.27,15.71143214]
[1752782261492,1e-08,173.28,173.27,15.71143214]
[1752782262171,0.2,173.39,173.34,9.26009262]
[1752782262385,0.2,173.39,173.29,6.4829]
[1752782262386,0.2,173.39,173.36,9.26009262]
[1752782262587,0.2,173.39,173.35,9.26009262]
[1752782263483,0.2,173.39,173.37,9.26009262]
[1752782263686,0.2,173.39,173.38,9.26009262]
[1752782263987,0.2,173.39,173.36,0.68]
[1752782264285,0.2,173.39,173.38,9.26009262]
[1752782264490,0.2,173.39,173.38,15.70777055]
[1752782266786,0.03,173.45,173.38,21.44364055]
[1752782266963,0.03,173.45,173.38,20.86687276]
[1752782267470,9.26009262,173.43,173.38,5.76767793]
[1752782267788,0.03,173.39,173.38,5.76767793]
[1752782268085,0.03,173.45,173.38,20.86687276]
[1752782268276,0.03,173.45,173.39,0.68]
[1752782268787,0.03,173.45,173.4,54.18454439]
[1752782268983,0.03,173.45,173.44,9.26009262]
[1752782269493,0.03,173.45,173.44,9.94009262]
[1752782270375,0.03,173.45,173.44,9.26009262]
[1752782270576,0.03,173.45,173.44,15.02577527]
[1752782270987,0.03,173.45,173.44,5.76568265]
[1752782271189,0.03,173.45,173.42,5.7660729]
[1752782271380,0.03,173.45,173.44,9.26009262]
[1752782271688,0.03,173.45,173.43,9.26009262]
[1752782272095,0.03,173.45,173.44,9.26009262]
[1752782272680,0.03,173.45,173.43,5.7660151]
[1752782272992,0.03,173.45,173.44,9.26009262]
[1752782273493,9.97009262,173.45,173.4,9.26009262]
[1752782273995,0.68,173.44,173.4,9.26009262]
[1752782274195,0.68,173.43,173.38,47.36775943]
[1752782274403,0.03,173.45,173.38,48.04775943]
[1752782274692,9.29009262,173.45,173.39,15.02710827]
[1752782275192,9.29009262,173.45,173.39,9.26009262]
[1752782275193,9.94009262,173.44,173.39,9.26009262]
[1752782275372,0.68,173.43,173.38,15.70768297]
[1752782275976,9.94009262,173.43,173.38,15.70768297]
[1752782276201,0.68,173.42,173.37,5.76792282]
[1752782276495,0.68,173.41,173.37,9.26009262]
[1752782276700,5.7954241,173.45,173.37,9.26009262]
[1752782276701,9.26009262,173.43,173.38,9.94009262]
[1752782276996,0.68,173.42,173.34,32.98]
[1752782277294,0.68,173.42,173.36,9.26009262]
[1752782277872,26.68,173.42,173.34,47.32884795]
[1752782278077,9.26009262,173.39,173.34,15.02884795]
[1752782278280,9.94009262,173.41,173.35,9.26009262]
[1752782278484,35.26009262,173.42,173.36,9.26009262]
[1752782278686,9.26009262,173.41,173.35,15.70854527]
[1752782278890,9.94009262,173.41,173.35,15.70854527]
[1752782279276,0.68,173.41,173.35,15.70854527]
[1752782279487,15.70687741,173.41,173.35,15.70854527]
[1752782279891,0.68,173.41,173.36,9.26009262]
[1752782280094,0.68,173.41,173.36,9.94009262]
[1752782280301,26.03,173.45,173.38,9.26009262]
[1752782280597,0.03,173.45,173.39,0.68]
[1752782280791,9.26009262,173.42,173.36,0.68]
[1752782280992,9.26009262,173.42,173.37,9.26009262]
[1752782281304,0.68,173.41,173.36,9.94009262]
[1752782281596,9.26009262,173.38,173.32,9.26009262]
[1752782281799,9.94009262,173.38,173.32,9.26009262]
[1752782282201,157.56009262,173.4,173.34,9.26009262]
[1752782282404,157.56009262,173.4,173.35,9.26009262]
[1752782282606,0.68,173.39,173.34,9.26009262]
[1752782282794,15.02720983,173.4,173.34,15.0289702]
[1752782282992,9.98009262,173.38,173.32,0.68]
[1752782283188,9.98009262,173.38,173.29,0.67]
[1752782283189,9.26009262,173.37,173.29,0.67]
[1752782283384,9.26009262,173.37,173.27,32.3]
[1752782283385,9.26009262,173.33,173.27,9.93009262]
[1752782283582,9.26009262,173.31,173.25,5.77200577]
[1752782283786,0.72,173.32,173.21,1.5022]
[1752782283987,9.26009262,173.28,173.22,15.03309804]
[1752782284192,9.26009262,173.28,173.21,5.77325915]
[1752782284510,9.26009262,173.26,173.2,0.67]
[1752782284709,9.26009262,173.26,173.2,9.26009262]
[1752782285014,9.26009262,173.26,173.18,32.56]
[1752782285015,6.49223646,173.25,173.16,5.8349942]
[1752782285306,9.26009262,173.21,173.16,5.83494868]
[1752782285482,0.72,173.24,173.17,0.67]
[1752782285676,9.26009262,173.23,173.17,0.67]
[1752782285898,0.72,173.24,173.18,9.26009262]
[1752782285899,9.98009262,173.24,173.18,9.26009262]
[1752782286116,26.72,173.27,173.19,0.67]
[1752782286412,9.26009262,173.25,173.19,0.67]
[1752782286780,9.26009262,173.25,173.16,5.83494868]
[1752782287102,0.3465,173.26,173.19,9.26009262]
[1752782287310,0.3465,173.26,173.23,9.26009262]
[1752782287510,0.3465,173.26,173.2,0.67]
[1752782287686,0.3465,173.26,173.23,9.26009262]
[1752782288018,0.3465,173.26,173.24,9.93009262]
[1752782288320,0.3465,173.26,173.25,9.93009262]
[1752782288988,1.0465,173.26,173.25,20.69302465]
[1752782289185,0.3465,173.26,173.25,20.69302465]
[1752782289692,0.3465,173.26,173.25,6.44200577]
[1752782289890,0.3465,173.26,173.25,20.69302465]
[1752782290689,0.3465,173.26,173.25,20.75302465]
[1752782291087,0.3465,173.26,173.25,21.33022522]
[1752782291504,14.28101888,173.4,173.25,35.76023965]
[1752782291701,0.03,173.4,173.35,14.25101888]
[1752782291905,14.28101888,173.4,173.35,14.25101888]
[1752782292211,14.25101888,173.39,173.32,0.67]
[1752782292411,14.25101888,173.37,173.32,14.25101888]
[1752782292611,0.72,173.37,173.33,14.25101888]
[1752782293588,14.97101888,173.36,173.3,32.64]
[1752782293897,15.67101888,173.36,173.3,46.89101888]
[1752782294098,15.67101888,173.36,173.3,14.25101888]
[1752782294482,14.25101888,173.34,173.28,0.67]
[1752782294689,14.25101888,173.32,173.27,14.25101888]
[1752782294888,14.25101888,173.29,173.25,0.06]
[1752782295109,0.72,173.31,173.25,0.06]
[1752782295110,14.25101888,173.27,173.25,0.06]
[1752782295321,0.72,173.26,173.25,0.06]
[1752782295523,14.97101888,173.27,173.25,0.06]
[1752782295809,14.97101888,173.26,173.25,0.06]
[1752782297718,20.74269151,173.26,173.25,0.06]
[1752782298402,6.49167263,173.26,173.25,0.06]
[1752782298714,20.74269151,173.26,173.25,0.06]
[1752782299312,6.49167263,173.26,173.25,0.06]
[1752782299512,20.74269151,173.26,173.25,0.06]
[1752782299984,6.49167263,173.26,173.25,0.06]
[1752782300186,53.40269151,173.26,173.25,0.06]
[1752782300913,14.25101888,173.27,173.25,0.06]
[1752782301310,46.95101888,173.28,173.25,0.06]
[1752782302008,14.25101888,173.26,173.25,0.06]
[1752782302521,14.97101888,173.26,173.25,0.06]
[1752782303118,14.25101888,173.26,173.25,0.06]
[1752782303324,32.7,173.28,173.25,0.06]
[1752782303619,14.25101888,173.27,173.25,0.06]
[1752782303998,14.25101888,173.26,173.25,0.06]
[1752782304194,39.19108035,173.28,173.25,0.06]
[1752782304411,14.25101888,173.26,173.25,0.06]
[1752782304794,14.97101888,173.26,173.25,0.06]
[1752782306016,20.74269151,173.26,173.25,0.06]
[1752782306697,6.49167263,173.26,173.25,0.06]
[1752782306896,20.74269151,173.26,173.25,0.06]
[1752782307101,14.97101888,173.26,173.25,0.06]
[1752782307293,20.74269151,173.26,173.25,0.06]
[1752782309101,15.824922,173.26,173.25,0.06]
[1752782309508,6.49167263,173.26,173.25,0.06]
[1752782309805,15.824922,173.26,173.25,0.06]
[1752782310196,25.15817137,173.26,173.25,0.06]
[1752782310392,41.94285534,173.26,173.25,1e-08]
[1752782310598,42.78468397,173.24,173.16,0.06]
[1752782310793,9.33324937,173.18,173.16,0.06]
[1752782311026,9.33324937,173.17,173.16,0.06]
[1752782311628,6.49441501,173.18,173.16,0.06]
[1752782311927,41.79324937,173.17,173.16,0.06]
[1752782312600,32.46,173.17,173.16,0.06]
[1752782312917,148.3,173.2,173.16,0.06]
[1752782312918,32.44,173.19,173.17,5.77467228]
[1752782313096,148.3,173.2,173.17,6.46467228]
[1752782313496,157.63324937,173.2,173.16,5.83497862]
[1752782314305,9.33324937,173.17,173.16,0.06]
[1752782315527,9.33324937,173.18,173.16,0.06]
[1752782316037,148.3,173.2,173.17,0.69]
[1752782316406,157.63324937,173.2,173.17,0.69]
[1752782316914,157.63324937,173.2,173.16,0.06]
[1752782317219,9.33324937,173.17,173.16,0.06]
[1752782317725,9.33324937,173.18,173.16,0.06]
[1752782317925,148.3,173.2,173.16,0.75]
[1752782318223,0.03,173.26,173.19,9.33324937]
[1752782318406,0.03,173.26,173.22,9.33324937]
[1752782318716,9.33324937,173.23,173.2,0.69]
[1752782318902,9.33324937,173.23,173.18,6.46433883]
[1752782319096,9.33324937,173.23,173.18,15.7975882]
[1752782319302,9.33324937,173.23,173.19,0.69]
[1752782319815,9.33324937,173.24,173.19,10.02324937]
[1752782320120,0.7,173.22,173.2,0.69]
[1752782320421,0.7,173.22,173.16,1.7199]
[1752782320422,9.33324937,173.22,173.17,5.7745663]
[1752782320595,0.7,173.22,173.17,5.7745663]
[1752782320800,0.7,173.22,173.17,6.4645663]
[1752782320996,9.33324937,173.21,173.17,6.4645663]
[1752782321201,9.33324937,173.22,173.18,0.69]
[1752782321827,32.32,173.23,173.18,0.69]
[1752782322026,9.33324937,173.22,173.18,0.69]
[1752782322528,9.33324937,173.22,173.19,5.77400542]
[1752782322722,33.02,173.23,173.19,5.77400542]
[1752782322896,9.33324937,173.22,173.18,6.4642226]
[1752782324721,0.7,173.21,173.18,5.7742226]
[1752782324899,9.33324937,173.22,173.18,5.7742226]
[1752782325103,10.03324937,173.22,173.18,5.7742226]
[1752782325633,0.7,173.21,173.18,5.7742226]
[1752782326017,0.7,173.21,173.17,15.10781277]
[1752782326214,9.33324937,173.18,173.16,0.06]
[1752782330740,0.7,173.18,173.16,0.06]
[1752782331218,10.03324937,173.17,173.16,0.06]
[1752782331414,42.13324937,173.17,173.16,0.06]
[1752782333111,47.90792165,173.17,173.16,0.06]
[1752782334542,32.1,173.17,173.16,0.06]
[1752782334712,148.3,173.19,173.16,0.06]
[1752782334713,148.3,173.19,173.16,0.75]
[1752782335107,32.74,173.21,173.17,6.46467228]
[1752782335712,0.7,173.21,173.18,0.69]